[Event "XV South American-ch Open U20 2019"]
[Site "Asuncion"]
[Date "2019.05.16"]
[Round "8.11"]
[White "Avalos Sanabria, Augusto Alfredo"]
[Black "Ayala Ruiz, Miguel Angel"]
[Result "1-0"]
[ECO "B41"]
[WhiteElo "1474"]
[BlackElo "1444"]
[Annotator "NA RC"]
[PlyCount "117"]
[EventDate "2019.05.11"]
[EventType "swiss"]
[EventCountry "PAR"]
[SourceTitle "playchess.com"]
[Source "ChessBase"]
[SourceQuality "1"]
[TimeControl "5400+30"]

1. e4 c5 2. Nf3 e6 3. d4 cxd4 4. Nxd4 a6 5. c4 Nf6 6. Nc3 Qc7 7. Be3 Bb4 8. f3 b6 9. Qb3 Be7 10. Be2 d6 11. f4 Bb7 12. Qc2 Nbd7 13. b4 O-O 14. O-O Rac8 15. Rac1 Rfe8 16. Rf3 d5 17. cxd5 exd5 18. Nxd5 Nxd5 19. exd5 Qxc2 20. Rxc2 Bxd5 21. Rxc8 Rxc8 22. Rg3 Bxb4 23. Bxa6 Ra8 24. Bb5 Nf6 25. Nc2 Bd6 26. a4 Bb3 27. Ne1 Nd5 28. Bxb6 Bxa4 29. Bxa4 Nxb6 30. Bb3 Ra1 31. Kf1 Bxf4 32. Rf3 Bd2 33. Bxf7+ Kh8 34. Rd3 Rxe1+ 35. Kf2 g6 36. Rxd2 Re7 37. Ba2 Kg7 38. g4 Nd7 39. g5 Nc5 40. Rd5 Ne4+ 41. Kf3 Nc3 42. Ra5 Re2 43. Ra7+ Kf8 44. Ra8+ Ke7 45. Ra7+ Kd6 46. Bg8 Rxh2 47. Bxh7 Rh5 48. Kg4 Nd5 49. Bxg6 Rh1 50. Be4 Rg1+ 51. Kh5 Nf4+ 52. Kh6 Ne6 53. g6 Rg4 54. Bf3 Rf4 55. Bh5 Rf8 56. Kh7 Rf5 57. Bg4 Nf8+ 58. Kg7 Ne6+ 59. Kh6 1-0

[Event "XV South American-ch Open U20 2019"]
[Site "Asuncion"]
[Date "2019.05.16"]
[Round "8.12"]
[White "Araoz Andrade, Ivan Alexander"]
[Black "Menacho Admen, Victor Gabriel"]
[Result "1-0"]
[ECO "D35"]
[WhiteElo "1843"]
[BlackElo "1103"]
[Annotator "NA RC"]
[PlyCount "45"]
[EventDate "2019.05.11"]
[EventType "swiss"]
[EventCountry "PAR"]
[SourceTitle "playchess.com"]
[Source "ChessBase"]
[SourceQuality "1"]
[TimeControl "5400+30"]

1. d4 d5 2. c4 e6 3. Nc3 Nf6 4. cxd5 exd5 5. Bg5 Be7 6. e3 Nc6 7. Qb3 {D35: Queen's Gambit Declined: Exchange Variation} (7. Bd3 O-O 8. Nge2 Nb4 9. Bb1 c6 10. Ng3 Na6 11. h4 c5 12. a3 cxd4 13. Qxd4 Re8 14. h5 h6 15. Bh4 Bc5 16. Qd3 d4 17. Bxf6 Qxf6 18. Nd5 {1-0 (18) Bru Rullo,L (2179)-Saldana Caballe,J (2061) Tarragona 2018}) 7... Be6 8. Qxb7 Bd7 $146 ({Predecessor:} 8... Rb8 9. Qxc6+ Bd7 10. Qa6 Ra8 11. Bb5 O-O 12. Bxd7 Qxd7 13. Nf3 Rfb8 14. Qa4 c6 {1-0 (32) Carstens Dobuchak,T (1838)-Weise,W Curitiba 2010}) 9. Qb3 Be6 10. Bb5 O-O 11. Bxc6 Rb8 12. Qc2 h6 13. Bxf6 Bxf6 14. Nf3 Qd6 15. Bb5 c6 16. Bd3 g6 17. O-O c5 18. b3 cxd4 19. exd4 Bg4 20. Ne5 Bxe5 21. dxe5 Qxe5 22. Rfe1 Qc7 23. Nxd5 $18 1-0

[Event "XV South American-ch Open U20 2019"]
[Site "Asuncion"]
[Date "2019.05.17"]
[Round "9.3"]
[White "Cantero, Rodolfo"]
[Black "Donoso Diaz, Sebastian"]
[Result "0-1"]
[ECO "B40"]
[WhiteElo "2059"]
[BlackElo "2251"]
[Annotator "NA RC"]
[PlyCount "76"]
[EventDate "2019.05.11"]
[EventType "swiss"]
[EventCountry "PAR"]
[SourceTitle "playchess.com"]
[Source "ChessBase"]
[SourceQuality "1"]
[TimeControl "5400+30"]

1. e4 {[%emt 0:00:30]} c5 {[%emt 0:00:30]} 2. Nf3 {[%emt 0:00:00]} e6 {[%emt 0:00:30]} 3. b3 {[%emt 0:00:00]} a6 {[%emt 0:04:30]} 4. Bb2 {[%emt 0:00:00]} Nc6 {[%emt 0:01:30]} 5. Bd3 {[%emt 0:00:00]} (5. Be2 d5 6. exd5 exd5 7. d4 Nf6 8. O-O Be7 9. dxc5 O-O 10. c4 Bxc5 11. Nc3 dxc4 12. Bxc4 Bg4 13. Nd5 Nxd5 14. Bxd5 {0-1 (29) Vachier Lagrave,M (2795)-Grischuk,A (2750) chess.com INT 2017}) 5... d6 {[%emt 0:06:30]} 6. O-O {[%emt 0:00:30] B40: Sicilian: 2...e6, Unusual lines} e5 {[%emt 0:02:30]} 7. Nc3 {[%emt 0:00:30]} Nge7 $146 {[%emt 0:08:30]} ({Predecessor:} 7... Nf6 8. h3 Be6 9. Re1 Be7 10. Bf1 O-O 11. d3 {½-½ (59) Mestek,I (2198)-Kolaric,S (2070) Nova Gorica 2012}) 8. Re1 {[%emt 0:00:30]} h6 {[%emt 0:06:30]} 9. Bc4 {[%emt 0:01:30]} b5 {[%emt 0:03:30]} 10. Bd5 {[%emt 0:00:00]} Nxd5 {[%emt 0:07:30]} 11. Nxd5 {[%emt 0:00:00]} g6 {[%emt 0:09:30]} 12. d3 {[%emt 0:00:30]} Bg7 {[%emt 0:01:30]} 13. a4 {[%emt 0:01:30]} Rb8 {[%emt 0:01:30]} 14. Qd2 {[%emt 0:01:30]} O-O {[%emt 0:01:30]} 15. g3 {[%emt 0:01:30]} Be6 {[%emt 0:03:30]} 16. axb5 {[%emt 0:00:30]} axb5 {[%emt 0:00:30]} 17. c4 {[%emt 0:03:30]} Bg4 {[%emt 0:10:30]} 18. Nh4 {[%emt 0:01:30]} bxc4 {[%emt 0:01:30]} 19. bxc4 {[%emt 0:00:00]} Qg5 {[%emt 0:00:30]} 20. Ne3 {[%emt 0:14:00]} Nd4 {[%emt 0:03:30]} 21. Ra2 {[%emt 0:10:30]} Ra8 {[%emt 0:04:39]} 22. Bxd4 {[%emt 0:01:30]} cxd4 {[%emt 0:04:33]} 23. Nxg4 {[%emt 0:00:00]} Qxg4 {[%emt 0:00:39]} 24. Rea1 {[%emt 0:02:00]} Rxa2 {[%emt 0:00:13]} 25. Rxa2 {[%emt 0:00:30]} Rb8 {[%emt 0:00:40]} (25... Bf6 $5 {[%cal Rf6h4]} 26. Ng2 h5 $11) 26. f3 {[%emt 0:03:30]} Rb1+ {[%emt 0:01:12]} 27. Kg2 {[%emt 0:00:30]} Qc8 {[%emt 0:00:45]} 28. Rc2 {[%emt 0:10:30]} Qa6 {[%emt 0:02:00]} 29. Rc1 {[%emt 0:04:30]} Rb3 {[%emt 0:01:20]} 30. Qe2 {[%emt 0:14:30]} Bf6 {[%emt 0:01:03]} 31. Kh3 {[%emt 0:01:30]} Qa3 {[%emt 0:01:42]} 32. Rd1 {[%emt 0:00:30] [#]} Bg5 $1 {[%emt 0:02:00]} 33. Ng2 {[%emt 0:02:30]} Rb2 {[%emt 0:00:12]} 34. Qf1 {[%emt 0:00:00]} Be3 {[%emt 0:01:34]} 35. f4 {[%emt 0:07:03]} Rf2 {[%emt 0:01:34]} 36. Nxe3 {[%emt 0:05:27]} dxe3 {[%emt 0:01:39]} 37. Qg1 {[%emt 0:00:11]} exf4 {[%emt 0:01:27]} 38. gxf4 $19 {[%emt 0:00:08]} e2 {[%emt 0:01:10]} 0-1

[Event "XV South American-ch Open U20 2019"]
[Site "Asuncion"]
[Date "2019.05.17"]
[Round "9.4"]
[White "Estrada Lavin, Cristian Alexand"]
[Black "Benitez Galeano, Alejandro"]
[Result "1/2-1/2"]
[ECO "A06"]
[WhiteElo "2116"]
[BlackElo "2052"]
[Annotator "NA RC"]
[PlyCount "121"]
[EventDate "2019.05.11"]
[EventType "swiss"]
[EventCountry "PAR"]
[SourceTitle "playchess.com"]
[Source "ChessBase"]
[SourceQuality "1"]
[TimeControl "5400+30"]

1. Nf3 {[%emt 0:00:30]} d5 {[%emt 0:12:30]} 2. b3 {[%emt 0:00:30]} Bg4 {[%emt 0:00:30]} 3. Ne5 {[%emt 0:03:30]} Bh5 {[%emt 0:04:30]} 4. d4 {[%emt 0:01:30]} (4. g4 Bg6 5. Nxg6 hxg6 6. Bg2 Qd6 7. h3 Nd7 8. Bb2 e5 9. d3 c6 10. Nd2 Be7 11. e3 f5 {1-0 (46) Harika,D (2539)-Guramishvili,S (2357) Teheran 2017}) 4... Nd7 {[%emt 0:02:30]} 5. Bb2 {[%emt 0:01:30]} e6 {[%emt 0:02:30]} 6. g3 {[%emt 0:03:30] A06: Réti Opening:1 Nf3 d5} Ngf6 {[%emt 0:06:30]} 7. Nxd7 {[%emt 0:01:30]} Qxd7 {[%emt 0:00:30]} 8. Bg2 $146 {[%emt 0:00:30]} ({Predecessor:} 8. Nd2 Qc6 9. c3 a5 10. a4 Qb6 11. Bg2 c5 12. O-O cxd4 13. cxd4 {1-0 (52) Boutteville,C-Gereben,E Bordeaux 1964}) 8... Be7 {[%emt 0:05:30]} 9. O-O {[%emt 0:00:30]} O-O {[%emt 0:00:30]} 10. Nd2 {[%emt 0:02:30]} a5 {[%emt 0:03:30]} 11. c4 {[%emt 0:08:30]} a4 {[%emt 0:04:30]} 12. f3 {[%emt 0:20:30]} c5 {[%emt 0:09:30]} 13. Kh1 {[%emt 0:01:30]} Rfd8 {[%emt 0:03:30]} 14. e3 {[%emt 0:09:30]} Bg6 {[%emt 0:04:30]} 15. Qe2 {[%emt 0:01:30]} b5 {[%emt 0:07:30]} 16. cxb5 {[%emt 0:15:30]} Rdb8 {[%emt 0:01:30]} 17. dxc5 {[%emt 0:02:30]} Rxb5 {[%emt 0:02:30]} 18. c6 {[%emt 0:01:30]} Qxc6 {[%emt 0:00:30]} 19. Rfc1 {[%emt 0:01:30]} Qd7 {[%emt 0:06:30]} 20. Be5 {[%emt 0:01:46]} Rb7 {[%emt 0:00:33]} 21. bxa4 {[%emt 0:02:37]} Ba3 {[%emt 0:00:41]} 22. Re1 {[%emt 0:02:25]} Qxa4 {[%emt 0:00:46]} 23. Nb3 {[%emt 0:00:45]} Nd7 {[%emt 0:00:55]} 24. Bb2 {[%emt 0:03:10]} Bd3 {[%emt 0:03:19]} 25. Qxd3 {[%emt 0:04:48]} Bxb2 {[%emt 0:00:02]} 26. Rab1 {[%emt 0:00:44]} Bf6 {[%emt 0:01:04]} 27. Re2 {[%emt 0:01:08]} Qc4 {[%emt 0:00:16]} 28. Rd1 {[%emt 0:02:51]} Rba7 {[%emt 0:02:49]} 29. Qxc4 {[%emt 0:01:50]} dxc4 {[%emt 0:00:02]} 30. Nc1 {[%emt 0:00:04]} Nb6 {[%emt 0:01:15]} 31. f4 {[%emt 0:00:51]} Rc8 {[%emt 0:01:40]} 32. Rd6 {[%emt 0:01:09]} Na4 {[%emt 0:00:17]} 33. Rc6 {[%emt 0:01:12]} Rxc6 {[%emt 0:03:04]} 34. Bxc6 {[%emt 0:00:00]} Nc5 {[%emt 0:00:28]} 35. Rc2 {[%emt 0:00:49]} Rc7 {[%emt 0:01:03]} 36. Bf3 {[%emt 0:01:24]} c3 {[%emt 0:00:26]} 37. g4 {[%emt 0:00:38]} g6 {[%emt 0:02:02]} 38. g5 {[%emt 0:00:13]} Bg7 {[%emt 0:00:01]} 39. e4 {[%emt 0:00:10]} Na6 {[%emt 0:00:55]} 40. a3 {[%emt 0:00:15]} Bf8 {[%emt 0:00:43]} 41. Ne2 {[%emt 0:00:21]} Bxa3 {[%emt 0:03:08]} 42. Rxc3 {[%emt 0:00:06]} Bc5 {[%emt 0:01:10]} 43. e5 {[%emt 0:02:10]} Rd7 {[%emt 0:00:38]} 44. Ng3 {[%emt 0:00:10]} Bf8 {[%emt 0:01:35]} 45. Ne4 {[%emt 0:01:12]} Rc7 {[%emt 0:01:06]} 46. Nf6+ {[%emt 0:00:22]} Kh8 {[%emt 0:00:02]} 47. Rd3 {[%emt 0:00:29]} Rc4 {[%emt 0:00:49]} 48. Rd8 {[%emt 0:00:22]} Kg7 {[%emt 0:00:01]} 49. Ne8+ {[%emt 0:01:13]} Kg8 {[%emt 0:00:06]} 50. Be2 {[%emt 0:00:24]} Ra4 {[%emt 0:00:46]} 51. Nf6+ {[%emt 0:00:24]} Kg7 {[%emt 0:00:02]} 52. Ne8+ {[%emt 0:00:28]} Kg8 {[%emt 0:00:01]} 53. Nf6+ {[%emt 0:00:50]} Kg7 {[%emt 0:00:00]} 54. Nd7 {[%emt 0:00:16]} Be7 {[%emt 0:00:40]} (54... Rd4 $1 $11) 55. Re8 {[%emt 0:00:12]} Bb4 {[%emt 0:00:20]} 56. Nf6 {[%emt 0:00:45]} Bf8 {[%emt 0:00:02] [#]} 57. Nxh7 {[%emt 0:00:36]} ({White should try} 57. Bxa6 $1 $16 Rxa6 58. Kg2) 57... Bc5 $2 {[%emt 0:01:35]} (57... Nc7 $11 {and Black stays safe.} 58. Rxf8 Nd5) 58. Nf6 {[%emt 0:00:13]} Bf8 {[%emt 0:00:02] [#]} 59. Nd7 $1 {[%emt 0:00:56]} Bb4 {[%emt 0:00:02]} 60. Nf6 $2 {[%emt 0:00:35]} (60. Rc8 $18) 60... Bf8 $16 {[%emt 0:00:02]} 61. Nd7 {[%emt 0:00:21]} 1/2-1/2

[Event "XV South American-ch Open U20 2019"]
[Site "Asuncion"]
[Date "2019.05.17"]
[Round "9.7"]
[White "Heinechen, Juan"]
[Black "Aguilar, Luis Miguel"]
[Result "0-1"]
[ECO "C41"]
[WhiteElo "2123"]
[BlackElo "2193"]
[Annotator "NA RC"]
[PlyCount "54"]
[EventDate "2019.05.11"]
[EventType "swiss"]
[EventCountry "PAR"]
[SourceTitle "playchess.com"]
[Source "ChessBase"]
[SourceQuality "1"]
[TimeControl "5400+30"]

1. e4 d6 2. d4 Nf6 3. Nc3 Nbd7 4. Nf3 e5 5. Bc4 Be7 6. O-O h6 7. Re1 c6 8. a4 a5 9. h3 g5 10. Nh2 Qc7 11. Ba2 Nf8 12. d5 Rg8 13. Nf1 Ng6 14. Ne3 Nf4 15. Nf5 Bxf5 16. exf5 Qd7 17. dxc6 bxc6 18. Qf3 g4 19. hxg4 Rxg4 20. g3 Nh3+ 21. Kf1 Ng5 22. Qh1 Rc8 23. Qxh6 Qxf5 24. Bxg5 Rxg5 25. Qh2 Ng4 26. Qg1 Rh5 27. Re4 Rh1 0-1

[Event "XV South American-ch Open U20 2019"]
[Site "Asuncion"]
[Date "2019.05.17"]
[Round "9.8"]
[White "Cosme Contreras, Trilce"]
[Black "Suarez, Pedro"]
[Result "1/2-1/2"]
[ECO "A25"]
[WhiteElo "2051"]
[BlackElo "2077"]
[Annotator "NA RC"]
[PlyCount "94"]
[EventDate "2019.05.11"]
[EventType "swiss"]
[EventCountry "PAR"]
[SourceTitle "playchess.com"]
[Source "ChessBase"]
[SourceQuality "1"]
[TimeControl "5400+30"]

1. c4 e5 2. Nc3 d6 3. g3 Be6 4. d3 Qd7 5. Bg2 Nc6 6. Nf3 Bh3 7. O-O Bxg2 8. Kxg2 g6 9. Rb1 Bg7 10. b4 f5 11. e4 Nf6 12. Nd5 O-O 13. b5 Ne7 14. Nxe7+ Qxe7 15. Bg5 h6 16. Bxf6 Qxf6 17. Nh4 f4 18. Qg4 Kh7 19. Nf3 h5 20. Qh4 Bh6 21. Qxf6 Rxf6 {Bh6 Qxf6 Rxf6} 22. h4 fxg3 23. fxg3 Raf8 24. a4 Kg7 25. a5 Be3 26. Ra1 R8f7 27. a6 bxa6 28. Rxa6 Bb6 29. Ra2 Kf8 30. Nh2 Ke7 31. Rxf6 Rxf6 32. Nf3 Kd7 33. Ra1 Ke7 34. Rf1 Bc5 35. Nh2 Rxf1 36. Nxf1 Kf6 37. g4 g5 38. gxh5 gxh4 39. Kh3 Kg5 40. h6 Kxh6 41. Kxh4 Kg6 42. Kg4 Bf2 43. Nd2 Be3 44. Nb1 Bd4 45. Nd2 Be3 46. Nb3 Bb6 47. Nd2 Be3 1/2-1/2

[Event "XV South American-ch Open U20 2019"]
[Site "Asuncion"]
[Date "2019.05.17"]
[Round "9.9"]
[White "Ayala Ruiz, Miguel Angel"]
[Black "Gomez Barrera, Gonzalo Andres"]
[Result "1-0"]
[ECO "B22"]
[WhiteElo "1444"]
[BlackElo "2058"]
[Annotator "NA RC"]
[PlyCount "59"]
[EventDate "2019.05.11"]
[EventType "swiss"]
[EventCountry "PAR"]
[SourceTitle "playchess.com"]
[Source "ChessBase"]
[SourceQuality "1"]
[TimeControl "5400+30"]

1. e4 c5 2. d4 cxd4 3. c3 Nf6 4. e5 Nd5 {cxd5 Nd5} 5. cxd4 e6 6. Nf3 b6 7. Be2 Be7 8. O-O O-O 9. Nc3 Nxc3 10. bxc3 Qc7 11. Qc2 Ba6 12. c4 d5 13. Bd3 g6 14. h4 Bxc4 15. h5 Rc8 16. hxg6 hxg6 17. Bg5 Bxg5 18. Nxg5 Qe7 19. f4 Kg7 20. Rf3 Na6 21. a3 b5 22. Rg3 Bxd3 23. Qxd3 Rh8 24. Qxb5 Nc7 25. Qc6 Rh4 26. Rc1 Rc8 27. Qd6 Kf8 28. Rgc3 Re8 29. Rxc7 Qxd6 30. Rxf7+ 1-0

[Event "XV South American-ch Open U20 2019"]
[Site "Asuncion"]
[Date "2019.05.17"]
[Round "9.10"]
[White "Ayala Ruiz, Miguel Angel"]
[Black "Gomez Barrera, Gonzalo Andres"]
[Result "1-0"]
[ECO "B01"]
[WhiteElo "1444"]
[BlackElo "2058"]
[Annotator "NA RC"]
[PlyCount "33"]
[EventDate "2019.05.11"]
[EventType "swiss"]
[EventCountry "PAR"]
[SourceTitle "playchess.com"]
[Source "ChessBase"]
[SourceQuality "1"]
[TimeControl "5400+30"]

1. e4 d5 2. exd5 Qxd5 3. d4 Nf6 4. Nf3 Bg4 5. Be2 e6 6. O-O Nc6 7. c3 Be7 8. Qb3 O-O-O 9. Be3 Ne4 10. Rc1 f5 11. Bc4 Qd6 12. Bxe6+ Kb8 13. d5 Na5 14. Qa4 b6 15. b4 Nc4 16. Nd4 Bf6 17. Nb5 1-0

[Event "XV South American-ch Open U20 2019"]
[Site "Asuncion"]
[Date "2019.05.17"]
[Round "9.11"]
[White "Avalos Sanabria, Augusto Alfredo"]
[Black "Araoz Andrade, Ivan Alexander"]
[Result "0-1"]
[ECO "B90"]
[WhiteElo "1474"]
[BlackElo "1843"]
[Annotator "NA RC"]
[PlyCount "48"]
[EventDate "2019.05.11"]
[EventType "swiss"]
[EventCountry "PAR"]
[SourceTitle "playchess.com"]
[Source "ChessBase"]
[SourceQuality "1"]
[TimeControl "5400+30"]

1. e4 c5 2. Nf3 d6 3. d4 cxd4 4. Nxd4 Nf6 5. Nc3 a6 6. f3 e5 7. Nde2 Be6 8. Be3 h5 9. Bg5 Nbd7 10. h4 Be7 11. Qd2 b5 12. a3 Qb6 13. Be3 Qb7 14. Ng3 g6 15. Bd3 Nb6 16. b3 Rc8 17. O-O O-O 18. Bg5 Nh7 19. Nce2 Bxg5 20. hxg5 Qe7 21. Qa5 Qa7 22. Bxb5 Nc4+ 23. Kh1 Nxa5 24. Bd3 h4 0-1

[Event "XV South American-ch Open U20 2019"]
[Site "Asuncion"]
[Date "2019.05.17"]
[Round "9.12"]
[White "Menacho Admen, Victor Gabriel"]
[Black "Allo Collante, Enrique"]
[Result "0-1"]
[ECO "D51"]
[WhiteElo "1103"]
[BlackElo "1595"]
[Annotator "NA RC"]
[PlyCount "56"]
[EventDate "2019.05.11"]
[EventType "swiss"]
[EventCountry "PAR"]
[SourceTitle "playchess.com"]
[Source "ChessBase"]
[SourceQuality "1"]
[TimeControl "5400+30"]

1. d4 d5 2. c4 c6 3. Nc3 Nf6 4. Bg5 Nbd7 5. cxd5 cxd5 6. Nf3 e6 7. e3 Be7 8. Bb5 O-O 9. O-O a6 10. Ba4 b5 11. Bb3 Bb7 12. a3 Ne8 13. Bxe7 Qxe7 14. Re1 Nd6 15. Bc2 f5 16. Nd2 Qf6 17. f3 Nb6 18. e4 Qxd4+ 19. Kf1 fxe4 20. Ndxe4 Qxd1 21. Raxd1 Nxe4 22. Nxe4 dxe4 23. Bxe4 Bxe4 24. Rxe4 Rf6 25. Red4 Nd5 26. Kf2 Rc8 27. R1d2 Rc6 28. Ke2 Kf7 0-1